[Event "ITT 1st Parada Jamundi 2022"]
[Site "Jamundi Valle"]
[Date "2022.12.10"]
[Round "8.20"]
[White "Quiceno Ramirez, Edwin Alejandro"]
[Black "Cortes Castro, Jhonny"]
[Result "0-1"]
[ECO "D87"]
[WhiteElo "1787"]
[BlackElo "1954"]
[Annotator "TA"]
[PlyCount "194"]
[EventDate "2022.12.05"]
[EventType "swiss"]
[EventCountry "COL"]
[SourceTitle "playchess.com"]
[Source "ChessBase"]
[SourceQuality "1"]
[TimeControl "5400+30"]

{[%evp 19,194,25,13,-16,-25,-25,0,-14,0,0,0,0,0,0,3,-3,0,0,3,13,15,7,21,7,7,9,10,15,31,37,83,77,77,78,91,91,127,83,80,-162,-162,-450,37,0,30,38,25,0,0,0,0,-16,-57,-186,0,-27,0,0,0,0,0,0,0,0,0,0,0,-29992,-29991,-29996,-29997,-29997,0,0,0,0,0,0,0,0,0,0,481,454,475,468,597,595,552,468,1525,0,492,0,1318,385,462,462,422,420,392,389,295,-274,-274,-281,0,-243,-243,-243,0,0,0,0,0,0,0,0,0,0,0,-29981,-29982,-29987,-29980,-29980,0,0,0,-29980,-38,-38,-38,-38,-38,-38,-38,-38,-38,-38,-38,-38,-38,-38,-30,-40,-30,-30,-36,-38,-30,-30,0,-30,-30,-30,-30,-30,-30,-30,0,-30,-26,-26,-26,-26,-22,-22,0,-26,-26,-29961,-26,-29974,-29975,-29990,-29991]} 1. d4 {[%emt 0:00:04]} Nf6 {[%emt 0:01:17]} 2. c4 {[%emt 0:00:08]} g6 {[%emt 0:00:07]} 3. Nc3 {[%emt 0:00:04]} d5 {[%emt 0:00:07]} 4. cxd5 {[%emt 0:00:08]} Nxd5 {[%emt 0:00:02]} 5. e4 {[%emt 0:00:01]} Nxc3 {[%emt 0:00:17]} 6. bxc3 {[%emt 0:00:06]} Bg7 {[%emt 0:00:05]} 7. Bc4 {[%emt 0:00:06]} c5 {[%emt 0:00:08]} 8. Ne2 {[%emt 0:00:12]} O-O {[%emt 0:00:10]} 9. O-O {[%emt 0:00:07]} Nc6 {[%emt 0:00:08]} 10. Be3 {[%emt 0:00:04]} Na5 {[%emt 0:00:18] 10...Bg4 is setting a new trend.} 11. Bd5 {[%emt 0:01:55] D87: Exchange Grünfeld: Classical Line: Variations without ...cxd4.} e6 {[%emt 0:00:21]} 12. Bb3 {[%emt 0:00:04]} Nxb3 {[%emt 0:00:13]} (12... b6 {is interesting.} 13. dxc5 Ba6 14. Re1 Nxb3 15. Qxb3 Qd3) 13. Qxb3 {[%emt 0:00:34] The position is equal.} cxd4 {[%emt 0:00:16]} 14. cxd4 {[%emt 0:00:19]} b6 {[%emt 0:00:04]} 15. Rfd1 {[%emt 0:02:31]} Bb7 {[%emt 0:00:18] [#]} 16. f3 $146 {[%emt 0:00:23]} ({Predecessor:} 16. Nc3 Qe7 17. a4 Rfc8 18. a5 bxa5 19. Rxa5 Bf8 20. Rc5 Rxc5 21. dxc5 Bc6 22. Qc4 {½-½ (32) Sorensen,M-Neergaard,H Aarhus 1994}) 16... Qd7 {[%emt 0:00:34]} 17. a4 {[%emt 0:02:30]} Ba6 {This pair of bishops is nice.} 18. Nc3 {[%emt 0:01:58]} Rfc8 {[%emt 0:01:53]} 19. Nb5 {[%emt 0:00:09]} h5 {[%emt 0:05:33]} 20. Ra2 {[%emt 0:12:29]} Qc6 {[%emt 0:02:42]} 21. d5 {[%emt 0:03:44]} exd5 {[%emt 0:00:16]} 22. Qxd5 {[%emt 0:04:28]} Bxb5 {[%emt 0:01:27]} (22... Qxd5 {simplifies} 23. Rxd5 Rc4 24. Kf2 Rb4) 23. axb5 {[%emt 0:01:05]} Qe8 {[%emt 0:03:57]} 24. Qd7 {[%emt 0:02:59]} Qe5 {[%emt 0:06:20]} (24... Rc3 $14 {feels stronger.} 25. Qxe8+ (25. Bf4 Qxd7 26. Rxd7 Rb3 $11) 25... Rxe8) 25. Rxa7 $16 {[%emt 0:13:31]} Rxa7 {[%emt 0:00:01]} 26. Qxc8+ {[%emt 0:00:01]} (26. Qxa7 Qxb5 27. Bxb6 (27. Qxb6 Qe2 $11) 27... Qe2 $11) 26... Kh7 {[%emt 0:00:11]} 27. Qc4 {[%emt 0:03:24]} Qb2 {[%emt 0:00:42]} 28. Bxb6 {[%emt 0:28:48]} Rb7 {[%emt 0:03:59]} 29. Qc5 {[%emt 0:03:09]} (29. Be3 $16 {keeps the pressure on. b6 is the strong threat.} Rxb5 30. Rd2 (30. Qxf7 $2 Qe2 $19) 30... Qa1+ 31. Kf2) 29... Qe2 $1 $19 {[%emt 0:00:38][%mdl 1024] Black has strong compensation.} 30. Rf1 {[%emt 0:03:38] [#]} (30. Rc1 Bh6 31. Qc2 Qxc2 32. Rxc2 Rxb6 33. Rb2) 30... Rd7 $2 {[%emt 0:01:50]} (30... Rxb6 $1 $19 {[%mdl 512]} 31. Rb1 (31. Qxb6 $2 Qd3 $19) 31... Qa2) 31. h3 {[%emt 0:02:15]} Rd2 {[%emt 0:09:12][%csl Gd2][%cal Re2g2]} 32. Qf2 {[%emt 0:01:10] And now Qxe2 would win.} Qd3 {[%emt 0:00:01]} 33. Qe3 {[%emt 0:00:31] aiming for Qxd3.} Qc2 {[%emt 0:00:02]} 34. Rf2 {[%emt 0:00:54]} Rd1+ {[%emt 0:00:15]} 35. Kh2 {[%emt 0:14:31]} Qb1 $40 {[%cal Oh5h4][%mdl 128] Black attacks.} 36. Qg5 {[%emt 0:00:00] [#]} (36. Rd2 $1 $15 Be5+ 37. f4) 36... f6 $2 {[%emt 0:02:19]} (36... Be5+ $1 $19 {[%mdl 512]} 37. f4 (37. Qxe5 h4) 37... Rh1+ 38. Kg3 f6) 37. Qh4 {[%emt 0:00:00]} (37. Qc5 h4) (37. Qf4 $5 {[%cal Rf2d2]}) 37... Kh6 {[%emt 0:02:10]} 38. Be3+ {[%emt 0:00:00]} g5 {[%emt 0:00:01]} 39. g4 $1 {[%emt 0:01:14][%csl Gg4][%cal Rh4h5]} Rh1+ {[%emt 0:01:05]} 40. Kg3 {[%emt 0:00:14][%csl Gg4][%cal Rh4h5]} Qg1+ {[%emt 0:01:12]} 41. Rg2 {[%emt 0:00:10][%csl Gg4][%cal Rh4h5]} Qe1+ {[%emt 0:00:02]} 42. Rf2 {[%emt 0:00:24][%csl Gg4][%cal Rh4h5]} Bf8 {[%emt 0:04:55][%mdl 64] Really sharp!} 43. Qxh5+ $2 {[%emt 0:00:57][%mdl 8192]} (43. Bxg5+ $11 fxg5 44. Qxh5+ Kg7 45. Qxg5+ Kf7 46. Qd5+ Kg6 47. Qf5+ Kg7 48. Qd7+ Kg6 49. Qe6+ Kg7 50. Qb6) 43... Kg7 {[%emt 0:00:01]} 44. Bxg5 {[%emt 0:00:29]} Bd6+ {[%emt 0:00:13]} 45. f4 {[%emt 0:00:36]} Qe3+ $2 {[%emt 0:02:09]} (45... Rg1+ 46. Kf3 Qc3+ 47. Ke2 Re1#) 46. Kg2 $11 {[%emt 0:00:50]} Qxe4+ {[%emt 0:00:04]} 47. Kg3 {[%emt 0:00:14]} (47. Rf3 Rg1+ $3 {[%mdl 512]} 48. Kxg1 Bc5+ 49. Kh2 Qe2+ 50. Kh1 Qxf3+ 51. Kh2 Qf2+ 52. Kh1 Qg1#) 47... Rg1+ {[%emt 0:08:22]} 48. Kh4 {[%emt 0:00:18]} fxg5+ {[%emt 0:00:35]} 49. Qxg5+ {[%emt 0:00:10]} Kf7 {[%emt 0:00:41]} 50. Qh5+ {[%emt 0:00:29]} Kf8 $2 {[%emt 0:05:16][%mdl 8192]} (50... Kg7 $11 51. Qg5+ Kf7 52. Qh5+ Kg7 53. Qg5+) 51. Qh6+ $18 {[%emt 0:00:25]} Ke7 {[%emt 0:00:44]} 52. Ra2 $1 {[%emt 0:00:36] White threatens Ra7+ and mate.} (52. Qg7+ Kd8 53. Qg8+ Kd7 54. Qf7+ Be7+ 55. Kh5 Rh1 56. Rd2+ Kc7 57. b6+ Kxb6 58. Rb2+ Kc7 $16) 52... Bb8 {[%emt 0:24:05][%cal Og1h1] Prevents Ra7+.} (52... Qe3 $2 53. Ra7+ $3 {[%mdl 512]} Qxa7 54. Qg7+ Ke6 55. f5+ Kd5 56. Qxa7) 53. Qg7+ {[%emt 0:00:54]} Ke8 {[%emt 0:07:27][%cal Og1h1]} 54. Qg8+ {[%emt 0:00:35]} Ke7 {[%emt 0:00:00]} (54... Kd7 $142 55. f5 (55. Qxb8 Qh7+ 56. Kg5 Qg7+ 57. Kh5 Qh7+ 58. Kg5 Qg7+ 59. Kh5 Qh7+ 60. Kg5 $11) 55... Qe5 56. Qf7+ Qe7+ 57. Qxe7+ Kxe7) 55. Qg7+ {[%emt 0:00:46]} (55. Qxb8 Qh7+ 56. Kg5 Qg7+ 57. Kh5 Qh7+ 58. Kg5 Qg7+ 59. Kh5 Qh7+ 60. Kg5 $11) (55. Ra6 $142 Kd7 56. Qxb8 Qh7+ 57. Kg5 Qg7+ 58. Kh5 Qh7+ 59. Rh6 Qf7+ 60. Kh4 Qe7+ 61. g5 Qe1+ 62. Kh5 Qe2+ 63. Kg6 (63. Kh4 $2 Rg4+ 64. Kh5 Rxf4+ 65. Kg6 Qe4+ 66. Kg7 Qe7+ 67. Kh8 Rf8+ $19) 63... Qe6+ 64. Kg7 Qe7+ 65. Kg8 Qe8+ 66. Qxe8+ Kxe8 67. h4) 55... Ke8 $1 {[%emt 0:00:01][%cal Og1h1]} 56. Qg8+ {[%emt 0:00:26]} (56. f5 $142 Qe7+ 57. f6 Rxg4+ 58. Kxg4 (58. hxg4 Qe1+ $11) 58... Qe4+ 59. Kh5 Qf5+ 60. Kh4 Qf4+ 61. Qg4 Qxf6+ 62. Qg5 (62. Kh5 Qh8+ 63. Kg5 Qg7+ 64. Kh4 Qe7+ 65. Kh5 Qh7+ 66. Kg5 Qg7+ 67. Kh5 Qh7+ 68. Kg5 Qg7+ $11) 62... Bg3+ 63. Kg4 (63. Kh5 Qf3+ 64. Qg4 Qd5+ 65. Kh6 Qxa2 $14) 63... Qe6+ 64. Kxg3 Qxa2 65. Qg6+ Kd7 66. Qf5+ Kd8 67. Qf6+ Ke8 68. Qc6+ Ke7 69. Qc5+ Kd7 70. h4) 56... Ke7 $1 {[%emt 0:00:00]} 57. Qg5+ $2 {[%emt 0:00:13]} ({And not} 57. Qxb8 Qh7+ 58. Kg5 Qg7+ 59. Kh5 Qh7+ 60. Kg5 Qg7+ 61. Kh5 Qh7+ 62. Kg5 $11) (57. Ra6 Kd7 58. Qxb8 Qh7+ 59. Kg5 Qg7+ 60. Kh5 Qh7+ 61. Rh6 Qf7+ 62. Rg6 Qh7+ 63. Rh6 Qf7+ 64. Kh4 Qe7+ 65. g5 Qe1+ 66. Kh5 Qd1+ 67. Kg6 Qd6+ 68. Qxd6+ Kxd6 69. f5) 57... Kd7 {[%emt 0:01:30]} 58. Rd2+ {[%emt 0:00:21]} Bd6 {[%emt 0:02:15] [#]} 59. Qg7+ $1 {[%emt 0:00:02]} Qe7+ {[%emt 0:00:19]} 60. Qxe7+ {[%emt 0:00:12]} Kxe7 {[%emt 0:00:01]} 61. Rxd6 $4 {[%emt 0:00:39][%mdl 8192]} Kxd6 {[%emt 0:00:01][%mdl 4096] Endgame KR-KP} 62. Kg5 {[%emt 0:02:16]} Ke6 $2 (62... Ke7 $19 {( -> ...Rb1)} 63. h4 Kf7) 63. h4 $2 {[%emt 0:00:00]} (63. Kg6 $1 $11 {and White is okay.}) 63... Kf7 $19 {[%emt 0:00:14]} 64. h5 {[%emt 0:00:08]} Rb1 $2 {[%emt 0:00:10]} ({Better is} 64... Rf1 $19 {White must now prevent ...Kg7.} 65. b6 Rb1) 65. Kh6 $1 $11 {[%emt 0:00:02]} Rb4 {[%emt 0:00:16]} (65... Rxb5 $5 66. Kh7 $8 Kf6 $11) 66. g5 {[%emt 0:00:54]} Rxf4 {[%emt 0:00:16] KR-K3P} (66... Rxb5 $5 67. Kh7 $8 Rd5 $11) 67. Kh7 $1 {[%emt 0:00:01]} (67. g6+ Kg8 68. Kg5 Rb4 69. h6 Rxb5+ 70. Kf6 Kf8 71. h7 Rb6+ 72. Kg5 Kg7 73. Kf5 Rf6+ 74. Ke5 Rxg6 75. h8=R Kxh8 76. Ke4 Kg7 77. Ke5 Rg5+ 78. Ke4 Kf6 79. Kd4 Ke6 80. Ke3 Ke5 81. Kf3 Kd4 82. Kf4 Re5 83. Kf3 Re4 84. Kf2 Re3 85. Kg2 Kd3 86. Kf2 Kd2 87. Kg1 Ke2 88. Kg2 Rc3 89. Kh1 Kf2 90. Kh2 Kf1 91. Kh1 Rh3#) 67... Rh4 {[%emt 0:01:09][%cal Rh4h5]} (67... Rg4 $5 68. g6+ $8 Kf6 $11) 68. g6+ {[%emt 0:00:27]} (68. h6 $5 Rg4 $8 69. b6 Rxg5 70. b7 $11) 68... Kf6 {[%emt 0:00:23]} 69. Kh6 {[%emt 0:00:33]} (69. h6 $5 Kg5 $8 70. g7 Rxh6+ 71. Kg8 $11) 69... Rd4 {[%emt 0:03:07]} 70. Kh7 $2 {[%emt 0:01:11][%mdl 8192]} (70. b6 $11) 70... Rd7+ {[%emt 0:00:28]} 71. Kh8 {[%emt 0:00:15]} Rb7 {[%emt 0:00:29]} 72. Kg8 {[%emt 0:00:45]} Rb8+ $2 {[%emt 0:01:10]} ({Inferior is} 72... Rxb5 73. g7 $15) (72... Ra7 73. b6 Rg7+ 74. Kh8 Rb7 75. Kg8 Kg5 76. g7 Kh6 77. Kf8 Rxg7 78. Ke8 Rb7 79. Kf8 Kxh5 80. Ke8 Kg6 81. Kd8 Rxb6 82. Ke7 Rf6 83. Ke8 Rf7 84. Kd8 Kf6 85. Kc8 Ke6 86. Kd8 Kd6 87. Kc8 Rh7 88. Kb8 Kc6 89. Ka8 Kb6 90. Kb8 Rh8#) 73. Kh7 {[%emt 0:00:03]} Rb7+ $2 {[%emt 0:02:57][%mdl 8192]} (73... Rxb5 $11 74. h6 Rb8) 74. Kg8 $1 {[%emt 0:00:48]} Rxb5 $2 {[%emt 0:00:25]} (74... Rc7 75. b6 Rd7 76. Kh8 Rb7 77. Kg8 Kg5 78. Kh8 Kf6 79. Kg8 Kg5 80. g7 Kh6 81. Kf8 Rxg7 82. Ke8 Kxh5 83. Kd8 Rb7 84. Kc8 Rxb6 85. Kd7 Kg6 86. Kd8 Rb7 87. Ke8 Kf6 88. Kd8 Re7 89. Kc8 Ke5 90. Kd8 Kd6 91. Kc8 Kc6 92. Kb8 Re6 93. Ka8 Kb6 94. Kb8 Re8#) 75. g7 $15 {[%emt 0:00:06]} Rxh5 {[%emt 0:00:51] KR-KP} 76. Kf8 {[%emt 0:00:01]} Ra5 {[%emt 0:00:20][%cal Ra5a8]} 77. g8=N+ {[%emt 0:00:04] KR-KN} Ke6 {[%emt 0:00:20]} 78. Nh6 {[%emt 0:01:16]} Rg5 {[%emt 0:00:41]} 79. Ng8 $1 {[%emt 0:00:19]} Rg1 {[%emt 0:01:10]} 80. Ne7 {[%emt 0:00:44]} Rf1+ {[%emt 0:00:00]} 81. Ke8 {[%emt 0:00:03]} Rb1 {[%emt 0:01:32]} 82. Kd8 {[%emt 0:00:12]} Rb7 {[%emt 0:00:07]} 83. Nc8 {[%emt 0:01:14]} Rd7+ {[%emt 0:00:01]} 84. Ke8 {[%emt 0:00:04]} Rh7 {[%emt 0:00:02][%cal Rh7h8]} 85. Kd8 {[%emt 0:00:06]} Rd7+ {[%emt 0:01:02]} 86. Ke8 {[%emt 0:00:11]} Rd4 {[%emt 0:00:28]} 87. Ne7 {[%emt 0:00:34]} Rd6 {[%emt 0:00:31]} 88. Nc8 {[%emt 0:00:17]} Rd7 {[%emt 0:00:09]} 89. Nb6 {[%emt 0:00:29]} Rd6 {[%emt 0:00:21]} 90. Nc8 $1 {[%emt 0:00:10]} Rc6 {[%emt 0:00:04][%cal Rc6c8]} 91. Kd8 $1 {[%emt 0:00:01]} Rc1 {[%emt 0:00:12]} 92. Nb6 {[%emt 0:00:24]} Rd1+ {[%emt 0:00:21]} 93. Kc7 {[%emt 0:00:13]} Rc1+ {[%emt 0:00:10]} 94. Kd8 {[%emt 0:00:01]} Rc5 {[%emt 0:00:26]} 95. Na4 $2 {[%emt 0:00:37][%mdl 8192] [#]} (95. Nc8 $11) 95... Rb5 $2 {[%emt 0:00:19]} (95... Rc6 $1 {mates} 96. Nb2 Rb6 97. Nc4 Rb3 98. Na5 Rb5 99. Nc6 Kd6 100. Ne7 Rb8+ 101. Nc8+ Kc6 102. Ke7 Rxc8 103. Ke6 Ra8 104. Kf5 Ra4 105. Ke5 Rc4 106. Ke6 Rc5 107. Ke7 Re5+ 108. Kf6 Kd6 109. Kf7 Rf5+ 110. Kg7 Ke7 111. Kg6 Rb5 112. Kg7 Rb6 113. Kh8 Kf7 114. Kh7 Kf8 115. Kh8 Rh6#) 96. Nc3 $2 {[%emt 0:00:06][%mdl 8192]} (96. Kc7 $11) 96... Rb4 {[%emt 0:00:17]} 97. Na2 {[%emt 0:00:22]} Rc4 {[%emt 0:00:03] A wild game.   Weighted Error Value: White=0.86/Black=0.44} 0-1

[Event "ITT 1st Parada Jamundi 2022"]
[Site "Jamundi Valle"]
[Date "2022.12.10"]
[Round "8.21"]
[White "Rodriguez, Juan Gabriel"]
[Black "Garces, Javier"]
[Result "0-1"]
[ECO "B21"]
[WhiteElo "1665"]
[BlackElo "1863"]
[Annotator "NA RC COMBH"]
[PlyCount "38"]
[EventDate "2022.12.05"]
[EventType "swiss"]
[EventCountry "COL"]
[SourceTitle "playchess.com"]
[Source "ChessBase"]
[SourceQuality "1"]
[TimeControl "5400+30"]

1. e4 {[%emt 0:01:13]} c5 {[%emt 0:00:06]} 2. f4 {[%emt 0:00:06]} Nc6 {[%emt 0:00:28]} 3. Nf3 {[%emt 0:00:12]} g6 {[%emt 0:00:57]} 4. Bb5 {[%emt 0:00:18]} Nd4 $11 {[%emt 0:01:21]} 5. Nxd4 {[%emt 0:00:04]} cxd4 {[%emt 0:00:09]} 6. O-O $1 {[%emt 1:31:37]} Qb6 7. Bc4 Nf6 {[%emt 0:08:04]} 8. d3 {[%emt 0:05:53]} d6 {[%emt 0:04:16]} 9. f5 {[%emt 0:01:59]} gxf5 {[%emt 0:01:56]} 10. exf5 {[%emt 0:00:03]} Rg8 {[%emt 0:01:20]} 11. Qf3 {[%emt 0:00:30]} Bd7 {[%emt 0:00:20]} 12. g3 {[%emt 0:02:44]} Bc6 {[%emt 0:01:12]} 13. Qe2 {[%emt 0:00:12]} h5 {[%emt 0:01:58]} 14. Rf4 {[%emt 0:01:35]} Bh6 {[%emt 0:01:20]} 15. Rf1 {[%emt 0:00:44]} Bxc1 {[%emt 0:00:16]} 16. Rxc1 {[%emt 0:00:18]} h4 {[%emt 0:03:03]} 17. Re1 {[%emt 0:01:02]} Qc7 {[%emt 0:00:48]} 18. Kf2 {[%emt 0:00:11]} hxg3+ {[%emt 0:00:06]} 19. hxg3 {[%emt 0:00:03]} d5 {[%emt 0:01:16]} 0-1

[Event "ITT 1st Parada Jamundi 2022"]
[Site "Jamundi Valle"]
[Date "2022.12.09"]
[Round "8.22"]
[White "Hernandez Bermudez, Manuela"]
[Black "Castro Castro, Joaquin"]
[Result "1/2-1/2"]
[ECO "B77"]
[WhiteElo "1815"]
[BlackElo "1797"]
[Annotator "NA RC COMBH"]
[PlyCount "45"]
[EventDate "2022.12.05"]
[EventType "swiss"]
[EventCountry "COL"]
[SourceTitle "playchess.com"]
[Source "ChessBase"]
[SourceQuality "1"]
[TimeControl "5400+30"]

1. e4 {[%emt 0:00:49]} c5 {[%emt 0:00:00]} 2. Nf3 {[%emt 0:00:11]} d6 {[%emt 0:00:00]} 3. d4 {[%emt 0:03:41]} cxd4 {[%emt 0:00:00]} 4. Nxd4 {[%emt 0:00:05]} Nf6 {[%emt 0:00:00]} 5. Nc3 {[%emt 0:00:00]} g6 {[%emt 0:00:00]} 6. Be3 {[%emt 0:00:31]} Bg7 {[%emt 0:00:00]} 7. f3 {[%emt 0:01:08]} O-O {[%emt 0:00:00]} 8. Qd2 {[%emt 0:00:21]} Nc6 {[%emt 0:00:00]} 9. Bc4 {[%emt 0:00:14]} Nxd4 {[%emt 0:00:00]} 10. Bxd4 {[%emt 0:00:08]} Be6 {[%emt 0:00:00]} 11. Bb3 {[%emt 0:03:28]} Qa5 {[%emt 0:00:00]} 12. O-O-O {[%emt 0:02:09]} b5 {[%emt 0:00:07]} 13. Kb1 {[%emt 0:01:26]} b4 14. Nd5 {[%emt 0:00:46]} Bxd5 {[%emt 0:00:15]} 15. exd5 {[%emt 0:00:07]} Qb5 {[%emt 0:00:07]} 16. g4 {[%emt 0:00:27]} a5 {[%emt 0:02:41]} 17. g5 {[%emt 0:03:46]} Nh5 {[%emt 0:02:55]} 18. Bxg7 {[%emt 0:05:40]} Nxg7 {[%emt 0:01:07]} 19. Qd3 {[%emt 0:02:33]} Qxd3 {[%emt 0:05:17]} 20. Rxd3 {[%emt 0:00:03]} a4 {[%emt 0:00:12]} 21. Bc4 {[%emt 0:00:07]} Rfc8 {[%emt 0:04:10]} 22. b3 {[%emt 0:00:41]} Nf5 {[%emt 0:06:39]} 23. Re1 {[%emt 0:01:34]} 1/2-1/2

[Event "ITT 1st Parada Jamundi 2022"]
[Site "Jamundi Valle"]
[Date "2022.12.09"]
[Round "8.23"]
[White "Cajamarca Gordillo, Sebastian Alejandro"]
[Black "Franco, Jhonier"]
[Result "0-1"]
[ECO "A57"]
[WhiteElo "1618"]
[BlackElo "1900"]
[Annotator "TA"]
[PlyCount "66"]
[EventDate "2022.12.05"]
[EventType "swiss"]
[EventCountry "COL"]
[SourceTitle "playchess.com"]
[Source "ChessBase"]
[SourceQuality "1"]
[TimeControl "5400+30"]

{[%evp 10,66,43,0,0,0,0,0,0,0,8,0,20,15,31,29,25,24,26,-64,-58,-64,-59,-99,-97,-128,-123,-206,-206,-206,-172,-332,-325,-421,-387,-372,-308,-772,-759,-806,-805,-1188,-845,-988,-956,-1270,-1254,-1320,-1199,-1316,-1319,-1587,-1370,-2716,-2489,-2685,-2417,-1741,-1319]} 1. d4 {[%emt 0:05:59]} c5 {[%emt 0:01:04]} 2. d5 {[%emt 0:01:46]} Nf6 {[%emt 0:00:08]} 3. c4 {[%emt 0:01:08]} b5 {[%emt 0:00:11]} 4. Nd2 {[%emt 0:04:32]} d6 {[%emt 0:00:38]} 5. e4 {[%emt 0:02:48]} g6 {[%emt 0:00:06]} 6. b3 {[%emt 0:02:25]} Bg7 {[%emt 0:00:58][%cal Of6e4] [#] Hoping for ...Nxe4! A57: Benko/Volga Gambit.} 7. Bb2 {[%emt 0:00:31]} O-O {[%emt 0:00:10]} 8. Ngf3 {[%emt 0:00:45]} b4 {[%emt 0:00:11] The position is equal.} 9. Bd3 {[%emt 0:01:39]} a5 {[%emt 0:00:09]} 10. O-O {[%emt 0:03:03]} Nbd7 {[%emt 0:01:46]} 11. Qc2 {[%emt 0:02:36]} Nh5 {[%emt 0:03:25]} 12. Bxg7 {[%emt 0:02:00]} Nxg7 {[%emt 0:00:10]} 13. Rfe1 {[%emt 0:00:33] [#]} e5 $146 {[%emt 0:00:32]} ({Predecessor:} 13... Ne5 14. Nxe5 dxe5 15. Nf3 f6 16. Qe2 Bg4 17. h3 Bd7 18. Qe3 Qc7 19. Red1 Qd6 {0-1 (43) Mehling,F (1713)-Tran,M (2002) Osnabrueck 2012}) 14. a4 {[%emt 0:07:14]} ({Better is} 14. a3 $11) 14... f5 $15 {[%emt 0:00:57]} 15. Bf1 {[%emt 0:07:23]} f4 {[%emt 0:00:39]} 16. Re2 {[%emt 0:01:35] Black continues to play with concentration.} g5 {[%emt 0:00:23][%cal Bg6g5,Bg5g4][%mdl 32]} 17. Ne1 {[%emt 0:02:38]} g4 {[%emt 0:00:13]} 18. Qd3 {[%emt 0:00:45]} (18. Nd3 $17 {might work better.}) 18... h5 $19 {[%emt 0:00:16]} 19. f3 {[%emt 0:01:59]} Qg5 {[%emt 0:03:49]} 20. fxg4 $2 {[%emt 0:00:28]} (20. g3) 20... hxg4 {[%emt 0:00:08]} 21. h3 {[%emt 0:01:06]} Nf6 {[%emt 0:02:05][%cal Bd7f6,Bf6g4,Bg4f6][%mdl 32]} 22. hxg4 {[%emt 0:04:40]} Nxg4 {[%emt 0:00:10]} (22... Bxg4 $2 {perishes.} 23. Nef3 Qg6 24. Kf2 $19) (22... Qxg4 $2 {too greedy.} 23. Qh3 $19) 23. Ndf3 $2 {[%emt 0:09:02]} (23. Qh3) 23... Qh6 {[%emt 0:02:14] And now ...Nh5 would win. Black is clearly winning.} 24. g3 {[%emt 0:01:10]} Nh5 {[%emt 0:00:43]} 25. Nh2 {[%emt 0:02:46]} Nxg3 {[%emt 0:00:26]} 26. Rg2 {[%emt 0:00:37]} Nf6 {[%emt 0:00:45] White must now prevent ...Ra7.} 27. Raa2 {[%emt 0:00:22]} Ra7 {[%emt 0:00:37]} 28. Be2 {[%emt 0:00:32]} Rg7 {[%emt 0:00:09]} 29. Bf3 {[%emt 0:00:08]} Kf7 {[%emt 0:00:11]} 30. Raf2 {[%emt 0:00:31]} Bh3 {[%emt 0:01:05]} 31. Qd1 {[%emt 0:00:15]} Rh8 {[%emt 0:00:26]} 32. Qc2 {[%emt 0:00:24]} Bxg2 {[%emt 0:01:21]} 33. Rxg2 {[%emt 0:00:12] [#]} Ngxe4 $1 {[%emt 0:02:19] Weighted Error Value: White=1.40/Black=0.46} 0-1

[Event "ITT 1st Parada Jamundi 2022"]
[Site "Jamundi Valle"]
[Date "2022.12.09"]
[Round "8.24"]
[White "Mata Zambrano, Luis Enrique"]
[Black "Hernandez Jimenez, Xavi"]
[Result "1-0"]
[ECO "D58"]
[WhiteElo "1544"]
[BlackElo "1678"]
[Annotator "NA RC COMBH"]
[PlyCount "49"]
[EventDate "2022.12.05"]
[EventType "swiss"]
[EventCountry "COL"]
[SourceTitle "playchess.com"]
[Source "ChessBase"]
[SourceQuality "1"]
[TimeControl "5400+30"]

1. d4 {[%emt 0:11:03]} d5 {[%emt 0:00:00]} 2. c4 {[%emt 0:01:11]} e6 {[%emt 0:00:28]} 3. Nf3 {[%emt 0:00:05]} Nf6 {[%emt 0:00:36]} 4. Nc3 {[%emt 0:00:10]} Be7 {[%emt 0:00:22]} 5. Bg5 {[%emt 0:00:23]} Nbd7 6. e3 {[%emt 0:00:32]} h6 {[%emt 0:01:41]} 7. Bh4 {[%emt 0:00:19]} O-O {[%emt 0:00:23]} 8. Qc2 {[%emt 0:00:39]} b6 {[%emt 0:05:39]} 9. cxd5 {[%emt 0:02:39]} exd5 {[%emt 0:01:21]} 10. Be2 {[%emt 0:00:53]} Bb7 {[%emt 0:00:33]} 11. O-O {[%emt 0:00:09]} Ne4 {[%emt 0:01:11]} 12. Bxe7 {[%emt 0:00:47]} Qxe7 {[%emt 0:00:08]} 13. Rfd1 {[%emt 0:00:44]} c6 {[%emt 0:08:27]} 14. Ne1 {[%emt 0:07:27]} Rfe8 {[%emt 0:17:10]} 15. Nd3 {[%emt 0:04:40]} Ba6 {[%emt 0:01:51]} 16. Rac1 {[%emt 0:01:19]} Qf6 {[%emt 0:04:25]} 17. Bf1 {[%emt 0:00:42]} Rac8 {[%emt 0:01:06]} 18. Ne5 {[%emt 0:01:53]} Bxf1 {[%emt 0:06:20]} 19. Nxe4 {[%emt 1:04:25]} dxe4 {[%emt 0:01:11]} 20. Nxd7 {[%emt 0:00:00]} Qd6 {[%emt 0:04:13]} 21. Nxb6 {[%emt 0:00:00]} Bxg2 {[%emt 0:04:54]} 22. Nxc8 {[%emt 0:00:00]} Qg6 {[%emt 0:00:22]} 23. Qxc6 {[%emt 0:00:00]} Qg4 {[%emt 0:00:44]} 24. Qxe8+ {[%emt 0:00:00]} Kh7 {[%emt 0:00:06]} 25. Qe5 {[%emt 0:00:00]} 1-0